[Event "SixDays Budapest March GM-A 2023"]
[Site "Budapest"]
[Date "2023.03.28"]
[Round "7.5"]
[White "Arfan, Aditya Bagus"]
[Black "Pap, Misa"]
[Result "1/2-1/2"]
[ECO "C45"]
[WhiteElo "2374"]
[BlackElo "2403"]
[Annotator "TA"]
[PlyCount "184"]
[EventDate "2023.03.24"]
[EventType "tourn"]
[EventCountry "HUN"]
[SourceTitle "playchess.com"]
[Source "ChessBase"]
[SourceQuality "1"]
[TimeControl "5400+30"]

{[%evp 13,183,0,5,0,0,-5,0,-4,0,8,10,0,0,7,6,6,7,0,0,-1,0,-3,0,-2,0,-16,-16,0,0,-12,-9,-1,0,0,0,0,3,0,0,0,0,0,0,7,0,0,10,9,10,-8,-8,-8,0,-13,-8,-16,-16,-16,0,0,0,0,0,-16,-16,-16,-16,-31,-16,-16,-16,-22,-16,-32,-32,-66,-46,-46,-49,-71,-70,-70,0,-39,0,-32,-32,-32,-32,-32,-32,-32,-32,-75,-74,-71,-47,-55,-56,-58,-56,-98,-56,-106,-96,-129,-120,-120,0,-207,-86,-129,-137,-182,-183,-178,-168,-239,-238,-208,0,-122,-69,-69,-69,-69,-69,-343,-343,-343,-336,-337,-329,-321,-246,-211,-17,-17,-17,-17,-8,-8,-8,-8,-10,-10,-8,-8,-8,-8,-8,-8,-8,-8,-8,-8,-8,-8,-8,-8,-8,-8,-8,-8,-8,-8,-8,-8,-8,-8,-8,-8]} 1. e4 {[%emt 0:10:41]} e5 {[%emt 0:01:11]} 2. Nf3 {[%emt 0:00:18]} Nc6 {[%emt 0:00:08]} 3. d4 {[%emt 0:00:06]} exd4 {[%emt 0:00:05]} 4. Nxd4 {[%emt 0:00:03]} Bc5 {[%emt 0:01:32]} 5. Nxc6 {[%emt 0:00:10]} bxc6 {[%emt 0:00:05]} 6. Bd3 {[%emt 0:00:08]} d6 {[%emt 0:00:13]} 7. O-O {[%emt 0:00:08]} Nf6 {[%emt 0:00:06][%cal Bg8f6,Bf6d7,Bd7b6,Bb6d5][%mdl 32]} 8. h3 {[%emt 0:03:04] C45: Scotch Game.} O-O {[%emt 0:00:23]} 9. Nc3 {[%emt 0:00:25]} Nd7 {[%emt 0:00:04]} 10. Na4 {[%emt 0:15:58]} Bd4 {[%emt 0:00:17]} 11. c3 {[%emt 0:00:59] [#]} Bf6 $146 {[%emt 0:00:06]} ({Predecessor:} 11... Bb6 12. Bf4 Qf6 13. Qd2 Re8 14. Rfe1 h5 15. b4 Bb7 16. Nxb6 axb6 17. a4 Qe6 18. Be2 g6 19. Bd3 Ba6 20. Bc2 Bc4 {0-1 Andersen,H (2143)-Rabo,K SLO 15 Years Memb ICCF email 2008}) 12. f4 {[%emt 0:07:45]} Re8 {[%emt 0:02:45]} 13. Be3 {[%emt 0:04:10]} Nb6 {[%emt 0:23:34]} 14. Qc2 {[%emt 0:11:00][%cal Oe4e5]} g6 {[%emt 0:02:39]} 15. Rad1 {[%emt 0:00:48]} Bd7 {[%emt 0:08:10]} 16. e5 {[%emt 0:05:37]} Nd5 {[%emt 0:05:39]} 17. Bc1 {[%emt 0:02:35]} dxe5 {[%emt 0:03:26]} 18. fxe5 {[%emt 0:04:43]} Bxe5 {[%emt 0:02:05]} (18... Rxe5 {looks sharper.} 19. c4 Nb4 20. Qf2 Nxd3 21. Qxf6 Bf5) 19. Qf2 {[%emt 0:03:54] Prevents Bg3} Qf6 {[%emt 0:08:01]} 20. Qxf6 {[%emt 0:01:57]} (20. Nc5 {feels hotter.} Bc8 21. Rfe1 Bh2+ 22. Kf1) 20... Bxf6 {[%emt 0:08:28]} 21. c4 {[%emt 0:09:08]} Bd4+ {[%emt 0:00:15]} 22. Kh1 $132 {[%emt 0:00:05][%mdl 2048] White is fighting back} Ne3 {[%emt 0:03:12]} 23. Bxe3 {[%emt 0:00:22]} Bxe3 {[%emt 0:00:08]} 24. Bxg6 $1 {[%emt 0:00:18][%mdl 64] Discovered Attack} Be6 {[%emt 0:06:59]} 25. Be4 {[%emt 0:00:05]} Bxc4 {[%emt 0:01:15] A strong pair of Bishops.} 26. Bxc6 {[%emt 0:00:01]} Bxf1 {[%emt 0:00:18]} 27. Rxf1 {[%emt 0:00:09][%cal Og2g4]} Rad8 {[%emt 0:01:14]} 28. Bxe8 {[%emt 0:00:02]} Rxe8 $11 {[%emt 0:00:06][%mdl 4096] Endgame KRB-KRN} 29. Re1 {[%emt 0:02:25]} Kf8 {[%emt 0:02:48]} 30. g4 {[%emt 0:00:16]} Bd4 31. Rc1 {[%emt 0:10:33]} Re3 {[%emt 0:05:20]} 32. Rxc7 {[%emt 0:01:08]} Rxh3+ 33. Kg2 Re3 {[%emt 0:03:08]} 34. Rc4 {[%emt 0:03:33]} Be5 {[%emt 0:02:03]} 35. Nc3 {[%emt 0:00:10]} Rg3+ {[%emt 0:00:12]} (35... Rd3 $5 {[%cal Rd3d2]}) 36. Kf2 {[%emt 0:00:06]} Rh3 {[%emt 0:00:08]} 37. Nd1 {[%emt 0:05:05]} Kg7 {[%emt 0:03:11]} 38. Ne3 {[%emt 0:00:52]} Rh2+ {[%emt 0:00:37]} 39. Kf3 {[%emt 0:00:34]} Rxb2 {[%emt 0:00:24]} 40. Ra4 {[%emt 0:00:01]} Rb7 {[%emt 0:01:10]} 41. Ra6 {[%emt 0:00:06]} f6 {[%emt 0:00:47]} 42. Nc4 {[%emt 0:00:15]} Bb8 {[%emt 0:00:49]} 43. Ne3 {[%emt 0:01:23]} Kg6 {[%emt 0:01:14]} 44. Nc4 {[%emt 0:00:48]} Rd7 {[%emt 0:02:20]} 45. Ne3 {[%emt 0:00:23]} Rd4 {[%emt 0:01:20]} 46. Ra5 {[%emt 0:00:33]} Rf4+ {[%emt 0:00:35]} 47. Ke2 {[%emt 0:00:01]} Rd4 {[%emt 0:02:05]} 48. Kf3 {[%emt 0:00:22]} Rd7 {[%emt 0:00:28]} 49. Nd5 {[%emt 0:00:48]} Be5 {[%emt 0:00:22]} 50. Nf4+ {[%emt 0:00:29]} Kf7 {[%emt 0:00:47]} 51. Nd5 {[%emt 0:00:37]} Rb7 {[%emt 0:00:28]} 52. Ne3 {[%emt 0:00:23]} Kg6 {[%emt 0:00:57]} 53. Nc4 {[%emt 0:00:18]} Bc3 {[%emt 0:01:30]} 54. Ra6 {[%emt 0:00:36]} Rc7 {[%emt 0:00:48]} 55. Nd6 {[%emt 0:00:42]} Be5 {[%emt 0:00:29]} 56. Ne4 {[%emt 0:00:14] Wards off Rc3+} h6 {[%emt 0:00:25]} 57. Ra5 {[%emt 0:00:30]} Rd7 {[%emt 0:00:10]} 58. Ke3 {[%emt 0:00:50]} (58. Nf2 $15) 58... Bd4+ {[%emt 0:00:08]} 59. Kf4 {[%emt 0:00:23]} Bb6 {[%emt 0:00:23]} 60. Ra3 {[%emt 0:00:45]} Bd4 {[%emt 0:01:35]} ({Better is} 60... Rd1 $17 {Hoping for ...Bd4.} 61. Nc3 Rf1+ 62. Kg3 f5 63. gxf5+ Rxf5) 61. Ng3 $2 {[%emt 0:00:34] [#]} (61. Ra5 $1 $11 {and White is okay.}) 61... Bc5 {[%emt 0:00:31]} (61... Bb2 $1 $19 {[%cal Rb2a3] and Black stays clearly on top.} 62. Rb3 Be5+ 63. Kf3 Rd2) 62. Ra5 {[%emt 0:00:32]} Rd4+ {[%emt 0:00:24]} 63. Kf3 {[%emt 0:00:02]} Rd3+ {[%emt 0:00:31]} 64. Kg2 {[%emt 0:00:04]} Bb6 {[%emt 0:00:32]} 65. Ra4 {[%emt 0:00:05] [#]} (65. Rb5 $142) 65... Rd2+ $1 $19 {[%emt 0:00:52]} 66. Kh3 {[%emt 0:00:59]} Rd3 {[%emt 0:00:43]} (66... Rc2 $19 {White must now prevent ...Bc7.} 67. Nf5 Bc7 68. Nh4+ Kf7) 67. Kg2 $17 {[%emt 0:00:03]} Rd4 {[%emt 0:00:44] Prevents Ne4.} ({Black should play} 67... Rd7 $17 68. Kf1 Rd4 69. Rxd4 Bxd4) 68. Rxd4 $15 {[%emt 0:00:06]} Bxd4 {[%emt 0:00:01] KB-KN} 69. Kf3 {[%emt 0:01:48]} Be5 {[%emt 0:00:11]} 70. Nh5 $2 {[%emt 0:00:54][%mdl 8192]} (70. Nf5 $15) 70... f5 $19 {[%emt 0:00:25] ( -> ...Kg5)} 71. Nf4+ {[%emt 0:00:16]} Kg5 {[%emt 0:01:21]} 72. Ne6+ {[%emt 0:00:37]} Kf6 {[%emt 0:00:00]} 73. Nc5 {[%emt 0:00:36]} Bd4 {[%emt 0:00:18]} 74. Nd3 {[%emt 0:00:09]} Kg5 $2 {[%emt 0:00:12]} (74... fxg4+ $19 75. Kxg4 Be3) 75. gxf5 $11 {[%emt 0:00:15] The position is equal.} Kxf5 {[%emt 0:00:01] Strongly threatening ...Bc3.} 76. Nb4 $1 {[%emt 0:00:10]} Bc5 {[%emt 0:00:24]} 77. Nc6 $1 a6 {[%cal Ba7a6,Ba6a5][%mdl 32] aiming for ...Bd6.} 78. Nb8 $1 {[%emt 0:00:18]} a5 {[%emt 0:00:02]} 79. a4 $1 {[%emt 0:00:07]} h5 {[%emt 0:00:28][%cal Bh6h5,Bh5h4,Bh4h3,Bh3h2][%mdl 32]} 80. Nc6 {[%emt 0:00:07]} Bb6 {[%emt 0:00:02]} 81. Kg3 {[%emt 0:00:25]} Kg5 {[%emt 0:00:07]} 82. Kh3 {[%emt 0:00:17]} Bc7 {[%emt 0:00:01]} 83. Nxa5 {[%emt 0:00:32][%mdl 64] Deflection} Bxa5 {[%emt 0:00:05] KB-KP} 84. Kg3 {[%emt 0:00:06]} h4+ {[%emt 0:00:02]} 85. Kh3 {[%emt 0:00:04]} Kh5 {[%emt 0:00:01]} 86. Kg2 {[%emt 0:00:06]} Kg4 {[%emt 0:00:01]} 87. Kh2 {[%emt 0:00:05]} h3 {[%emt 0:00:01]} 88. Kg1 {[%emt 0:00:06]} Kg3 {[%emt 0:00:01]} 89. Kh1 {[%emt 0:00:05]} Bc7 {[%emt 0:00:03]} 90. a5 {[%emt 0:00:15]} Bxa5 {[%emt 0:00:02]} 91. Kg1 {[%emt 0:00:06]} h2+ {[%emt 0:00:05]} 92. Kh1 {[%emt 0:00:01]} Kh3 {[%emt 0:00:05] Whites escaped into a draw.   Weighted Error Value: White=0.07 (flawless) /Black=0.07 (flawless)} 1/2-1/2

[Event "SixDays Budapest March GM-A 2023"]
[Site "Budapest"]
[Date "2023.03.28"]
[Round "8.1"]
[White "Rosh Jain"]
[Black "Pap, Misa"]
[Result "0-1"]
[ECO "C60"]
[WhiteElo "2325"]
[BlackElo "2403"]
[Annotator "TA"]
[PlyCount "172"]
[EventDate "2023.03.24"]
[EventType "tourn"]
[EventCountry "HUN"]
[SourceTitle "playchess.com"]
[Source "ChessBase"]
[SourceQuality "1"]
[TimeControl "5400+30"]

{[%evp 9,170,26,40,38,21,18,28,13,20,14,14,16,57,0,0,0,2,-4,-7,-5,-7,-5,-6,-48,-34,-6,-31,-152,-154,-154,-154,-154,-147,-154,-156,-156,-156,-156,-156,-156,-156,-156,-156,-156,-156,-193,-189,-183,-157,-200,-195,-374,-374,-374,-369,-362,-356,-362,-351,-337,-315,-306,-147,-993,-820,-381,-381,-1812,-1820,-1932,-1837,-2959,-1812,-2781,-2455,-1637,-1214,-2946,-2247,-1333,-1398,-1694,-1436,-2227,-2314,-29965,-29966,-29970,-29971,-29976,-29977,-29977,-29978,-29979,-29980,-29980,-29980,-29980,-29975,-29975,-29976,-29976,-29977,-29977,-29978,-29979,-29980,-29980,-29980,-29980,-29981,-29982,-29983,-29983,-29983,-29987,-29984,-29988,-29989,-29989,-29990,-29991,-29990,-29990,-29991,-29993,-29993,-29993,-29994,-29994,-29994,-29995,-29995,-29995,-29996,-29996,-29995,-29995,-29991,-29992,-29993,-29993,-29993,-29993,-29994,-29994,-29994,-29994,-29994,-29995,-29996,-29996,-29996,-29996,-29996,-29996,-29997,-29997,-29998,-29998,-29998,-29998,-29999]} 1. e4 {[%emt 0:00:33]} e5 {[%emt 0:15:28]} 2. Nf3 {[%emt 0:00:03]} Nc6 {[%emt 0:01:17]} 3. Bb5 {[%emt 0:00:04][%cal Bf1b5,Bb5a4,Ba4b3][%mdl 32]} g6 {[%emt 0:00:19]} 4. O-O {[%emt 0:00:45]} Bg7 {[%emt 0:00:14]} 5. c3 {[%emt 0:00:12]} a6 {[%emt 0:00:05]} 6. Ba4 {[%emt 0:00:05] C60: Ruy Lopez: Unusual Black 3rd moves and 3...g6.} Nge7 {[%emt 0:00:11] 6...b5 is setting a new trend.} 7. h3 {[%emt 0:01:17]} b5 {[%emt 0:01:26]} 8. Bb3 {[%emt 0:00:09] White has an edge.} O-O {[%emt 0:04:11]} 9. d4 {[%emt 0:01:12]} exd4 10. cxd4 {[%emt 0:00:05]} d5 {[%emt 0:01:22]} 11. exd5 {[%emt 0:10:37]} ({Better is} 11. e5 $1 $14) 11... Nxd5 $11 {[%emt 0:00:06] [#]} 12. Bg5 $146 {[%emt 0:00:09]} ({Predecessor:} 12. Nc3 Nxc3 13. bxc3 Na5 14. Re1 Nxb3 15. axb3 c5 16. Ba3 b4 17. cxb4 cxd4 18. b5 {½-½ Ruppert,W (2124)-Hohner,K (1952) Wiesbaden op 24th 2012 (2)}) 12... Qd6 {[%emt 0:00:28]} 13. Bxd5 {[%emt 0:10:29]} Qxd5 {[%emt 0:00:08]} 14. Nc3 {[%emt 0:00:07]} Qf5 {[%emt 0:07:07][%cal Oc6d4] Threatens to win with ...Nxd4!} 15. Qd2 {[%emt 0:04:50]} Bb7 {[%emt 0:03:12]} 16. Rfe1 {[%emt 0:07:11]} (16. Bh6 $5) 16... Rfe8 {[%emt 0:01:38][%cal Oc6d4]} 17. Rxe8+ {[%emt 0:08:30]} Rxe8 {[%emt 0:00:21]} 18. Re1 {[%emt 0:09:52]} (18. Bh6 $1 $15) 18... Rxe1+ $17 {[%emt 0:00:28][%mdl 64] Deflection} 19. Qxe1 {[%emt 0:00:04]} Nxd4 {[%emt 0:06:11] Black is more active.} ({Weaker is} 19... Bxd4 20. Nxd4 (20. Qe8+ Kg7 $17) 20... Nxd4 21. Qe7 $15) 20. Qe8+ {[%emt 0:10:04]} Bf8 {[%emt 0:00:05] This pair of bishops is nice.} 21. Be7 {[%emt 0:01:15][%csl Ge7][%cal Re8f8]} Nxf3+ {[%emt 0:01:11]} 22. gxf3 {[%emt 0:00:16][%csl Ge7][%cal Re8f8]} Qc8 {[%emt 0:00:09]} 23. Qxc8 {[%emt 0:00:07]} Bxc8 {[%emt 0:00:09][%mdl 4096] Endgame KBB-KBN} 24. Nd5 {[%emt 0:00:06]} Bg7 {[%emt 0:03:48]} ({Worse is} 24... Bxh3 25. Nf6+ Kg7 26. Ne8+ Kg8 27. Nf6+ Kg7 28. Ne8+ Kg8 29. Nf6+ $11) 25. Nf6+ {[%emt 0:01:30]} Bxf6 {[%emt 0:00:20]} 26. Bxf6 {[%emt 0:00:04]} Bxh3 {[%emt 0:00:05] KB-KB} 27. Kh2 {[%emt 0:00:45]} Be6 {[%emt 0:00:05]} 28. a3 {[%emt 0:00:04]} Kf8 {[%emt 0:01:39]} 29. Be5 {[%emt 0:00:18]} c6 {[%emt 0:00:04]} 30. b4 $2 {[%emt 0:00:29]} (30. Kg3) 30... Ke7 $19 {[%emt 0:00:05]} 31. Kg3 {[%emt 0:00:08]} f6 {[%emt 0:00:08]} 32. Bd4 {[%emt 0:01:05]} Bd5 {[%emt 0:01:05]} 33. f4 {[%emt 0:00:37]} Ke6 {[%emt 0:00:10]} 34. Kg4 {[%emt 0:00:54]} h5+ {[%emt 0:00:08][%cal Bh7h5,Bh5h4][%mdl 32]} 35. Kg3 {[%emt 0:00:07]} Kf5 {[%emt 0:00:03]} (35... Be4 $19 {and Black stays clearly on top. White must now prevent ...Kd5.} 36. f3 Bd3) 36. Bb2 $2 {[%emt 0:01:13][%mdl 8192] [#] Now White is beyond hope.} (36. Bc5 $17) 36... g5 $1 {[%emt 0:03:26]} 37. fxg5 {[%emt 0:02:01]} fxg5 {[%emt 0:00:04] ...h4+ would be deadly.} 38. Bc1 $2 {[%emt 0:01:38]} (38. f3 h4+ 39. Kf2) 38... h4+ {[%emt 0:00:09]} 39. Kh3 {[%emt 0:00:32]} Bf3 {[%emt 0:00:04]} 40. Be3 {[%emt 0:01:37]} Kg6 {[%emt 0:00:02] aiming for ...Kh5.} 41. Bb6 {[%emt 0:02:26]} Kh5 {[%emt 0:00:04]} 42. Bd8 {[%emt 0:00:09]} g4+ {[%emt 0:00:05]} (42... Be2 $142 43. Kh2 Kg4) 43. Kh2 {[%emt 0:00:04]} h3 {[%emt 0:00:05]} 44. Bc7 {[%emt 0:03:43]} Kg5 {[%emt 0:00:17]} 45. Kg1 {[%emt 0:00:07]} Be2 {[%emt 0:00:06]} 46. f3 {[%emt 0:01:04]} gxf3 {[%emt 0:01:43] ( -> ...Kf5)} (46... Bxf3 47. Kh2 Kf6 48. Kg3) 47. Kf2 {[%emt 0:00:16]} Kf5 {[%emt 0:00:05]} 48. Ke3 {[%emt 0:00:08]} Ke6 {[%emt 0:00:03]} 49. Kd2 {[%emt 0:01:37]} Kd5 {[%emt 0:00:10]} 50. Ke1 {[%emt 0:00:26]} Kc4 {[%emt 0:00:05]} 51. Kf2 {[%emt 0:00:18]} Kb3 {[%emt 0:00:04]} 52. Kg1 {[%emt 0:00:13]} Kxa3 {[%emt 0:00:05]} 53. Bd6 {[%emt 0:00:07]} Kb3 {[%emt 0:00:28]} 54. Bc5 {[%emt 0:00:06] [#]} h2+ $1 {[%emt 0:00:27]} 55. Kxh2 {[%emt 0:00:04] [#]} f2 $1 {[%emt 0:00:03]} 56. Bxf2 {[%emt 0:00:05]} Kxb4 {[%emt 0:00:03]} 57. Kg3 {[%emt 0:00:47]} c5 {[%emt 0:00:15]} 58. Kf4 {[%emt 0:00:04]} c4 {[%emt 0:00:06]} 59. Ke3 {[%emt 0:00:05]} Bd3 {[%emt 0:00:14]} 60. Kd2 {[%emt 0:01:10]} Kb3 {[%emt 0:00:09]} 61. Bd4 {[%emt 0:00:21]} a5 {[%emt 0:00:13]} 62. Kc1 {[%emt 0:00:14]} a4 {[%emt 0:00:04]} 63. Ba1 {[%emt 0:00:49]} c3 {[%emt 0:00:09]} 64. Kd1 {[%emt 0:00:08]} b4 {[%emt 0:00:04]} 65. Kc1 {[%emt 0:00:10]} a3 {[%emt 0:00:05]} 66. Kd1 {[%emt 0:00:08]} Kc4 {[%emt 0:00:09]} 67. Kc1 {[%emt 0:00:44]} b3 {[%emt 0:00:05]} 68. Kd1 {[%emt 0:00:05]} b2 {[%emt 0:00:03]} 69. Bxb2 {[%emt 0:00:04]} axb2 {[%emt 0:00:05][%cal Rb2b1]} 70. Ke1 {[%emt 0:00:05]} Bg6 {[%emt 0:00:12][%cal Bd3g6,Bg6h5,Bh5g4][%mdl 32]} 71. Ke2 {[%emt 0:00:05]} c2 {[%emt 0:00:08][%cal Bc3c2,Bc2c1,Bc1f4][%mdl 32]} 72. Kd2 {[%emt 0:00:05]} c1=B+ {[%emt 0:00:09]} 73. Ke2 {[%emt 0:00:04]} b1=B {[%emt 0:00:18]} 74. Kd1 {[%emt 0:00:26]} Bf4 {[%emt 0:00:08]} 75. Ke2 {[%emt 0:00:04]} Bh5+ {[%emt 0:00:11]} 76. Kf2 {[%emt 0:00:05]} Kd3 {[%emt 0:00:11][%cal Bc4d3,Bd3d2,Bd2e2,Be2f3,Bf3g3][%mdl 32]} 77. Kg2 {[%emt 0:00:07]} Bg4 {[%emt 0:00:06]} 78. Kf2 {[%emt 0:00:04]} Kd2 {[%emt 0:00:05]} 79. Kg2 {[%emt 0:00:04]} Ke2 {[%emt 0:00:08]} 80. Kg1 {[%emt 0:00:05]} Bbf5 {[%emt 0:00:13][%cal Bb1f5,Bf5g4,Bg4f3][%mdl 32]} 81. Kg2 {[%emt 0:00:07]} Bh3+ {[%emt 0:00:08]} 82. Kg1 {[%emt 0:00:06]} Kf3 {[%emt 0:00:08]} 83. Kh1 {[%emt 0:00:04]} Kg3 {[%emt 0:00:07]} 84. Kg1 {[%emt 0:00:03]} Bfg4 {[%emt 0:00:08]} 85. Kh1 {[%emt 0:00:07]} Bf3+ {[%emt 0:00:03]} 86. Kg1 {[%emt 0:00:04]} Be3# {Weighted Error Value: White=0.59/Black=0.07 (flawless)} 0-1

[Event "SixDays Budapest March GM-A 2023"]
[Site "Budapest"]
[Date "2023.03.28"]
[Round "8.2"]
[White "Horvath, Adam"]
[Black "Arfan, Aditya Bagus"]
[Result "1-0"]
[ECO "B18"]
[WhiteElo "2458"]
[BlackElo "2374"]
[Annotator "TA"]
[PlyCount "51"]
[EventDate "2023.03.24"]
[EventType "tourn"]
[EventCountry "HUN"]
[SourceTitle "playchess.com"]
[Source "ChessBase"]
[SourceQuality "1"]
[TimeControl "5400+30"]

{[%evp 15,51,23,12,19,16,35,29,12,19,26,18,17,16,11,66,35,62,59,89,73,102,96,214,220,202,192,363,360,693,679,769,764,754,745,714,682,29991,29992]} 1. e4 {[%emt 0:00:34]} c6 {[%emt 0:01:09]} 2. d4 {[%emt 0:00:09]} d5 {[%emt 0:00:42]} 3. Nc3 {[%emt 0:00:16]} dxe4 {[%emt 0:00:03]} 4. Nxe4 {[%emt 0:00:07]} Bf5 {[%emt 0:00:01]} 5. Ng3 {[%emt 0:00:09]} Bg6 {[%emt 0:00:01]} 6. c3 {[%emt 0:08:14]} e6 {[%emt 0:03:07]} 7. Nh3 {[%emt 0:00:43]} Bd6 {[%emt 0:01:39]} 8. Nf4 {[%emt 0:02:46]} Nf6 {[%emt 0:17:54]} 9. h4 {[%emt 0:12:33][%cal Bh2h4,Bh4h5,Bh5h6][%mdl 32] B18: Classical Caro-Kann: 4...Bf5 sidelines.} Qc7 {[%emt 0:02:12]} 10. Qf3 {[%emt 0:00:44]} Nbd7 {[%emt 0:01:34]} 11. h5 {[%emt 0:00:11] White has an edge.} Bc2 {[%emt 0:02:03]} 12. h6 {[%emt 0:01:35]} g6 {[%emt 0:01:33] Prevents Nfh5.} 13. Bd3 {[%emt 0:01:31]} Bxd3 {[%emt 0:00:27]} 14. Nxd3 {[%emt 0:00:04]} O-O {[%emt 0:04:47]} (14... Qa5 $11) 15. Bg5 {[%emt 0:12:58]} Be7 {[%emt 0:05:06]} 16. O-O {[%emt 0:02:39] [#]} a5 $146 {[%emt 0:17:06]} ({Predecessor:} 16... Qd8 17. Rad1 Nd5 18. Bxe7 Qxe7 19. c4 N5b6 20. b3 Qh4 21. Nc5 Rab8 22. a4 Nf6 {½-½ Rozentalis,E (2519)-Pultinevicius,P (2395) Baltic zt II Stage 2018 (3)}) 17. Rfe1 {[%emt 0:08:06]} a4 {[%emt 0:08:30]} 18. c4 {[%emt 0:09:41] White is much more active.} Rfe8 {[%emt 0:02:58]} (18... Rfc8 $16) 19. Ne5 $18 {[%emt 0:03:12]} Qd8 {[%emt 0:05:00]} 20. Rad1 {[%emt 0:07:18] Hoping for Ne4.} Ra5 $2 {[%emt 0:01:53]} (20... a3 {was necessary.}) 21. Ne4 {[%emt 0:04:35]} Rf8 $2 {[%emt 0:01:21] [#]} (21... Rxe5 22. dxe5 Nxe4) 22. Nc5 $1 {[%emt 0:01:49][%mdl 512]} Nxe5 {[%emt 0:09:38]} (22... Qe8 23. Nxb7) 23. dxe5 {[%emt 0:00:12]} Qc7 {[%emt 0:00:11]} 24. Nd7 {[%emt 0:03:19]} ({Weaker is} 24. exf6 Bxc5 25. Bf4 Qb6 $11) (24. Nxe6 fxe6 25. Bxf6 Bxf6 26. exf6 Rf5 $14) 24... Nxd7 {[%emt 0:00:18]} 25. Bxe7 {[%emt 0:00:05] Rxd7 would kill now.} Re8 {[%emt 0:02:07] [#] Black is weak on the dark squares} 26. Rxd7 $1 {[%emt 0:00:08][%mdl 576] Remove Defender, Deflection.   Weighted Error Value: White=0.04 (flawless) /Black=0.99} 1-0

[Event "SixDays Budapest March GM-A 2023"]
[Site "Budapest"]
[Date "2023.03.28"]
[Round "8.3"]
[White "Kushagra Mohan"]
[Black "Sammed Jaykumar, Shete"]
[Result "1/2-1/2"]
[ECO "B94"]
[WhiteElo "2396"]
[BlackElo "2454"]
[Annotator "TA"]
[PlyCount "41"]
[EventDate "2023.03.24"]
[EventType "tourn"]
[EventCountry "HUN"]
[SourceTitle "playchess.com"]
[Source "ChessBase"]
[SourceQuality "1"]
[TimeControl "5400+30"]

{[%evp 13,26,16,32,16,34,34,41,39,52,20,72,46,45,51,57]} 1. e4 {[%emt 0:02:07]} c5 {[%emt 0:00:38]} 2. Nf3 {[%emt 0:00:13]} d6 {[%emt 0:00:07]} 3. d4 {[%emt 0:00:04]} cxd4 {[%emt 0:00:03]} 4. Nxd4 {[%emt 0:00:03]} Nf6 {[%emt 0:00:05]} 5. Nc3 {[%emt 0:00:02]} a6 {[%emt 0:00:05]} 6. Bg5 {[%emt 0:00:04]} Nbd7 {[%emt 0:00:20]} 7. Bc4 {[%emt 0:00:05]} g6 {[%emt 0:02:51]} 8. f3 {[%emt 0:07:38] B94: Sicilian Najdorf: 6 Bg5 Nbd7.} Bg7 {[%emt 0:01:03]} 9. Qd2 {[%emt 0:00:06]} h6 {[%emt 0:00:25]} 10. Be3 {[%emt 0:00:18]} Qc7 {[%emt 0:00:28]} 11. Be2 {[%emt 0:03:58]} Ne5 {[%emt 0:07:51]} (11... b5 $11 {remains equal.}) 12. O-O {[%emt 0:09:09]} Nc4 {[%emt 0:01:57]} 13. Bxc4 {[%emt 0:00:03]} Qxc4 {[%emt 0:00:06] [#]   Weighted Error Value: White=0.13 (very precise) /Black=0.17 (very precise)} {Predecessor:} 14. Rad1 $146 Bd7 15. b3 Qc7 16. Nd5 Nxd5 17. exd5 O-O-O 18. c4 e5 19. dxe6 fxe6 20. Rc1 Bxd4 21. Bxd4 {½-½ Wade,R-Mardle,D BCF-ch 45th Leamington 1958 (1)} 1/2-1/2